bitfinex-derivatives/quotes_SOLF0:USTF0_20240906
["timestamp","ask_amount","ask_price","bid_price","bid_amount"]
[1725643971513,3.9554,126.48,126.38,45.49]
[1725643971710,3.9554,126.48,126.39,1.45390611]
[1725643971916,45.49,126.49,126.39,3.9448037]
[1725643972112,49.4452,126.49,126.38,45.49]
[1725643972316,49.4452,126.49,126.39,1.45405015]
[1725643972517,49.4452,126.49,126.43,3.9568]
[1725643972716,45.49,126.47,126.38,45.49]
[1725643973021,1.3163,126.46,126.4,3.9577]
[1725643973814,1.3163,126.46,126.38,4.00967363]
[1725643974019,1.3163,126.46,126.38,45.49]
[1725643974217,1.3163,126.46,126.36,6.60540276]
[1725643974413,45.49,126.45,126.36,2.7363]
[1725643974617,45.49,126.43,126.33,45.49]
[1725643974813,45.49,126.43,126.34,1.45468526]
[1725643975313,1.4001,126.45,126.34,1.45468526]
[1725643975516,1.3163,126.46,126.37,45.49]
[1725643975710,49.46833684,126.5,126.39,45.49]
[1725643975912,2.6186,126.53,126.34,45.49]
[1725643975913,1.308,126.52,126.41,45.49]
[1725643976112,3.9547,126.5,126.44,3.9566]
[1725643976317,46.798,126.52,126.41,50.77655366]
[1725643976624,1.3149,126.53,126.44,45.49]
[1725643976819,3.9533,126.55,126.5,3.9546]
[1725643977310,3.9535,126.54,126.49,3.9549]
[1725643977514,45.49,126.56,126.49,3.94703083]
[1725643977716,45.49,126.56,126.44,45.49]
[1725643977919,3.9533,126.55,126.5,3.9547]
[1725643978315,3.9458,126.57,126.53,3.9536]
[1725643978626,3.9458,126.57,126.49,3.9217192]
[1725643978814,3.9458,126.57,126.47,1.3054]
[1725643979317,2.6229,126.57,126.49,45.49]
[1725643979618,1.308,126.57,126.49,3.86674553]
[1725643979826,1.308,126.57,126.47,46.7954]
[1725643980526,5.2606,126.57,126.52,3.9539]
[1725643980711,1.308,126.57,126.47,50.65847022]
[1725643981017,5.2607,126.57,126.47,50.65847022]
[1725643981323,1.308,126.57,126.47,50.65847022]
[1725643981622,3.9529,126.56,126.51,3.9541]
[1725643981813,1.308,126.57,126.48,45.49]
[1725643982715,45.49,126.6,126.48,49.54244803]
[1725643983017,45.49,126.6,126.51,45.49]
[1725643983226,3.952,126.59,126.54,3.9533]
[1725643983415,1.3867,126.61,126.52,45.49]
[1725643983617,307.90015308,126.69,126.54,45.49]
[1725643983812,11.75759805,126.71,126.59,45.49]
[1725643983813,45.49,126.7,126.59,45.49]
[1725643984016,4.0418,126.7,126.59,45.49]
[1725643984222,3.9488,126.69,126.64,3.9501]
[1725643984417,4.0418,126.7,126.59,45.49]
[1725643984623,4.0418,126.7,126.61,45.49]
[1725643984914,1.3867,126.7,126.61,49.47563206]
[1725643985517,45.49,126.73,126.63,45.49]
[1725643985721,45.49,126.75,126.65,45.49]
[1725643985920,45.49,126.75,126.69,3.9485]
[1725643986120,49.47998103,126.75,126.65,45.49]
[1725643986424,45.49,126.71,126.61,45.49]
[1725643986721,49.47454343,126.71,126.61,3.86128569]
[1725643986915,3.9495,126.67,126.61,3.9512]
[1725643987115,45.49,126.69,126.57,45.49]
[1725643987321,3.95,126.66,126.6,3.9514]
[1725643987617,45.49,126.67,126.56,5.37967877]
[1725643987817,45.49,126.65,126.56,5.37967877]
[1725643988119,3.9504,126.64,126.58,3.952]
[1725643989027,3.9504,126.64,126.56,5.37967877]
[1725643989028,3.9504,126.64,126.59,3.9518]
[1725643989222,45.49,126.67,126.56,5.37967877]
[1725643989422,1.3506,126.68,126.59,45.49]
[1725643989624,1.3506,126.68,126.61,45.49]
[1725643990226,45.49,126.75,126.56,5.37967877]
[1725643990419,45.49,126.73,126.62,45.49]
[1725643990623,45.49,126.73,126.68,3.9489]
[1725643990624,49.4376,126.73,126.68,3.9489]
[1725643990819,45.49,126.75,126.68,4.01969677]
[1725643991025,45.49,126.75,126.65,45.49]
[1725643991221,45.49,126.73,126.65,3.90474672]
[1725643991421,45.49,126.71,126.63,2.6045]
[1725643991620,45.49,126.71,126.63,6.48357059]
[1725643991934,49.4383,126.71,126.63,2.6045]
[1725643992232,49.42753316,126.73,126.63,6.64908287]
[1725643992430,45.49,126.73,126.63,2.6045]
[1725643992634,45.49,126.71,126.63,2.6045]
[1725643992830,1.2829,126.7,126.64,3.92054741]
[1725643993129,5.2316,126.7,126.64,7.88591076]
[1725643993426,1.2829,126.7,126.64,3.93581076]
[1725643993735,49.4374,126.74,126.64,45.49]
[1725643993919,1.2829,126.76,126.66,45.49]
[1725643994425,5.2297,126.76,126.7,3.9482]
[1725643994729,1.2829,126.76,126.7,3.9482]
[1725643995133,1.2829,126.76,126.69,3.9487]
[1725643995534,1.2829,126.76,126.66,45.49]
[1725643996729,3.947,126.75,126.7,3.9483]
[1725643996929,1.2829,126.76,126.69,45.49]
[1725643997326,5.2295,126.76,126.71,3.9479]
[1725643997527,1.2829,126.76,126.72,3.91719382]
[1725643997721,1.2829,126.76,126.69,45.49]
[1725643997922,1.2992,126.78,126.69,45.49]
[1725643998327,45.49,126.76,126.65,48.2683]
[1725643998526,6.62710349,126.75,126.67,3.9494]
[1725643998725,6.62710349,126.75,126.65,48.2683]
[1725643998921,45.49,126.74,126.65,2.7783]
[1725643999126,45.49,126.72,126.65,3.9498]
[1725643999331,45.49,126.72,126.64,3.95950619]
[1725643999633,45.49,126.7,126.58,45.49]
[1725644000826,1.3265,126.71,126.6,45.49]
[1725644001022,5.2748,126.71,126.66,3.9495]
[1725644003026,1.3265,126.71,126.63,45.49]
[1725644003235,1.3265,126.71,126.63,3.88683374]
[1725644003531,3.949,126.69,126.64,3.9501]
[1725644003730,1.3265,126.71,126.63,3.99426375]
[1725644003936,1.3265,126.71,126.6,45.49]
[1725644004235,45.49,126.68,126.57,48.2057]
[1725644004427,45.49,126.68,126.57,2.7157]
[1725644004428,2.6934,126.67,126.57,2.7157]
[1725644004732,45.49,126.66,126.57,3.9523]
[1725644004929,2.6934,126.67,126.58,45.49]
[1725644005129,3.9505,126.64,126.59,7.82589491]
[1725644005325,2.6934,126.67,126.59,3.87419491]
[1725644005533,1.3507,126.67,126.6,45.49]
[1725644005734,1.3507,126.67,126.63,3.9506]
[1725644007136,1.3507,126.67,126.61,5.2563]
[1725644007433,1.3507,126.67,126.59,3.9259351]
[1725644007641,1.3507,126.67,126.47,281.85628568]
[1725644007642,46.8407,126.67,126.56,45.49]
[1725644008233,45.49,126.65,126.54,48.1731]
[1725644008443,2.717,126.64,126.54,48.1731]
[1725644008837,3.9512,126.62,126.57,3.9525]
[1725644009534,45.49,126.62,126.53,4.02246189]
[1725644009740,45.49,126.62,126.52,45.49]
[1725644010244,2.717,126.64,126.56,45.49]
[1725644010436,2.717,126.64,126.56,49.37217623]
[1725644011138,2.717,126.64,126.56,3.88217623]
[1725644011434,1.3507,126.67,126.6,45.49]
[1725644011743,1.3507,126.67,126.62,3.9508]
[1725644012237,1.3507,126.67,126.62,3.9509]
[1725644012436,1.3507,126.67,126.6,45.49]
[1725644012844,1.3507,126.67,126.62,3.9507]
[1725644013243,1.3507,126.67,126.58,46.8911]
[1725644013434,3.9498,126.66,126.61,3.9512]
[1725644013833,46.8407,126.67,126.59,3.9516]
[1725644014140,46.8407,126.67,126.57,1.3155]
[1725644014838,46.8407,126.67,126.57,46.8055]
[1725644015233,1.3507,126.67,126.59,45.49]
[1725644015642,1.3507,126.67,126.61,3.9511]
[1725644015846,46.8407,126.67,126.58,45.49]
[1725644016236,3.9499,126.66,126.58,45.49]
[1725644016935,3.9501,126.65,126.6,3.9513]
[1725644017741,3.9504,126.64,126.59,3.9517]
[1725644018539,3.9508,126.63,126.58,3.9521]
[1725644018844,46.8407,126.67,126.56,49.39628422]
[1725644019440,3.9508,126.63,126.58,3.952]
[1725644019746,45.49,126.63,126.53,1.3851]
[1725644020038,3.9517,126.6,126.55,3.9529]
[1725644020543,2.7154,126.62,126.53,1.3851]
[1725644020838,45.49,126.61,126.53,1.3851]
[1725644021343,1.4014,126.6,126.51,1.2963]
[1725644021740,1.4014,126.6,126.57,3.9524]
[1725644022047,1.4014,126.6,126.55,3.90914158]
[1725644022339,1.4014,126.6,126.51,1.2963]
[1725644022543,45.49,126.59,126.51,1.2963]
[1725644022748,45.49,126.59,126.5,116.64570209]
[1725644022945,1.4014,126.6,126.5,116.64570209]
[1725644023436,3.9524,126.58,126.53,3.9536]
[1725644023635,3.9524,126.58,126.53,7.9081642]
[1725644024542,3.9526,126.57,126.53,7.9081642]
[1725644024747,1.4014,126.6,126.53,7.9081642]
[1725644024941,1.4014,126.6,126.54,3.9534]
[1725644025140,3.9523,126.58,126.54,3.9534]
[1725644025348,1.4014,126.6,126.54,3.9534]
[1725644025541,45.49,126.59,126.5,116.64570209]
[1725644025746,45.49,126.57,126.48,2.621]
[1725644025945,2.6399,126.56,126.48,2.621]
[1725644026246,3.9537,126.54,126.5,3.9545]
[1725644026751,3.9533,126.55,126.51,3.9544]
[1725644026936,2.6399,126.56,126.48,2.621]
[1725644027138,45.49,126.59,126.49,45.49]
[1725644027348,3.9522,126.58,126.54,3.9533]
[1725644027849,3.9521,126.59,126.55,3.9531]
[1725644028042,1.4014,126.6,126.5,45.49]
[1725644028246,45.49,126.57,126.48,2.621]
[1725644028455,3.9533,126.55,126.51,3.9543]
[1725644029445,45.49,126.58,126.48,2.621]
[1725644029655,45.49,126.56,126.48,1.323]
[1725644029844,3.9548,126.5,126.46,3.9558]
[1725644030041,45.49,126.51,126.43,1.3516]
[1725644030441,3.9551,126.49,126.43,1.3516]
[1725644030852,45.49,126.51,126.41,1.3893]
[1725644031146,45.49,126.5,126.41,1.3893]
[1725644031352,45.49,126.48,126.41,1.3893]
[1725644031557,3.9556,126.47,126.42,3.957]
[1725644031758,45.49,126.48,126.41,5.3747713]
[1725644032046,45.49,126.52,126.41,1.3893]
[1725644032243,1.2958,126.53,126.42,45.49]
[1725644032451,3.9545,126.51,126.45,3.956]
[1725644032846,1.2958,126.53,126.44,45.49]
[1725644033046,5.2497,126.53,126.47,3.9555]
[1725644033241,1.2958,126.53,126.44,45.49]
[1725644033847,45.49,126.51,126.42,45.49]
[1725644034256,3.9549,126.5,126.44,3.9564]
[1725644034649,45.49,126.51,126.44,3.9564]
[1725644035456,45.49,126.51,126.41,6.63787178]
[1725644035858,45.49,126.51,126.46,3.9559]
[1725644036154,1.2958,126.53,126.44,45.49]
[1725644036358,3.9546,126.51,126.42,45.49]
[1725644036758,1.2958,126.53,126.42,45.49]
[1725644037650,5.2497,126.53,126.42,45.49]
[1725644037856,1.2958,126.53,126.42,45.49]
[1725644038251,1.2958,126.53,126.46,45.49]
[1725644038860,1.2958,126.53,126.49,3.9547]
[1725644039065,1.2958,126.53,126.5,3.94638475]
[1725644039249,1.2958,126.53,126.46,45.49]
[1725644039962,5.2497,126.53,126.48,3.9552]
[1725644040157,1.2958,126.53,126.42,45.49]
[1725644040651,1.2958,126.53,126.44,45.49]
[1725644040859,1.2958,126.53,126.42,45.49]
[1725644041053,45.49,126.52,126.41,6.63787178]
[1725644041758,1.2958,126.53,126.44,45.49]
[1725644042058,1.2958,126.53,126.49,3.9547]
[1725644042250,1.3331,126.55,126.49,3.91219632]
[1725644042562,2.7699,126.58,126.47,2.644]
[1725644042753,2.7699,126.58,126.51,3.9544]
[1725644043255,0.59032543,126.57,126.47,2.644]
[1725644043453,45.49,126.55,126.47,2.644]
[1725644043655,3.9533,126.55,126.5,3.9545]
[1725644043956,45.49,126.57,126.5,7.85917971]
[1725644044156,45.49,126.57,126.47,1.3134]
[1725644044358,45.49,126.54,126.43,1.2862]
[1725644044557,1.3993,126.53,126.43,2.5996]
[1725644044962,3.9543,126.52,126.47,3.9555]
[1725644045158,2.7699,126.58,126.47,45.49]
[1725644045357,1.3993,126.57,126.47,45.49]
[1725644045557,1.3993,126.57,126.49,3.9549]
[1725644045558,3.9536,126.54,126.49,3.9549]
[1725644045765,3.9536,126.54,126.49,3.86173855]
[1725644045959,3.9536,126.54,126.47,45.49]
[1725644046160,3.9533,126.55,126.5,3.9544]
[1725644046369,1.3993,126.57,126.51,3.99266505]
[1725644046668,1.3993,126.57,126.52,3.954]
[1725644046856,2.7699,126.58,126.53,3.93768383]
[1725644047061,1.4092,126.58,126.5,45.49]
[1725644047260,1.4092,126.58,126.53,3.9536]
[1725644047453,1.4092,126.58,126.5,49.5321086]
[1725644047658,46.8992,126.58,126.5,4.0421086]
[1725644047966,3.953,126.56,126.51,3.9542]
[1725644048263,46.8992,126.58,126.5,3.9546]
[1725644048264,3.9533,126.55,126.5,3.9546]
[1725644048857,3.9535,126.54,126.5,3.9546]
[1725644049257,46.8992,126.58,126.49,3.9575616]
[1725644049463,3.9535,126.54,126.47,45.49]
[1725644049759,46.8992,126.58,126.51,3.9543]
[1725644050065,46.8992,126.58,126.47,45.49]
[1725644050269,46.8992,126.58,126.5,3.9544]
[1725644050570,3.9536,126.54,126.49,3.98049482]
[1725644050863,3.9536,126.54,126.49,3.9548]
[1725644051068,3.9533,126.55,126.49,3.87294594]
[1725644051367,46.8992,126.58,126.51,3.9542]
[1725644051659,3.953,126.56,126.51,3.9534417]
[1725644051855,46.8992,126.58,126.52,3.954]
[1725644052053,46.8992,126.58,126.43,2.5996]
[1725644052054,5.3616,126.58,126.53,3.97875132]
[1725644052256,1.4092,126.58,126.49,45.49]
[1725644052563,2.7562,126.61,126.51,45.49]
[1725644052866,227.0,126.68,126.58,45.49]
[1725644053057,1.3883,126.68,126.58,45.49]
[1725644053261,1.4145,126.72,126.63,45.49]
[1725644053461,1.4145,126.72,126.6,45.49]
[1725644053762,46.9045,126.72,126.6,45.49]
[1725644054064,1.4145,126.72,126.6,49.35367164]
[1725644054568,3.9483,126.71,126.6,49.35367164]
[1725644054755,3.9483,126.71,126.63,45.49]
[1725644054956,46.8783,126.74,126.65,45.49]
[1725644055168,45.49,126.73,126.61,45.49]
[1725644055465,45.49,126.7,126.59,2.7293]
[1725644055660,3.9499,126.66,126.59,6.70720584]
[1725644055860,45.49,126.68,126.59,2.7293]
[1725644056258,3.9495,126.67,126.61,3.951]
[1725644056562,45.49,126.68,126.59,6.65704259]
[1725644056765,3.9492,126.68,126.63,3.9506]
[1725644057264,3.9485,126.7,126.64,3.9501]
[1725644058070,3.9485,126.7,126.65,3.95]
[1725644058257,3.9488,126.69,126.61,45.49]
[1725644058665,3.9488,126.69,126.63,3.9503]
[1725644058860,3.9492,126.68,126.59,52.14704259]
[1725644059058,45.49,126.7,126.59,52.14704259]
[1725644059263,45.49,126.7,126.62,3.9507]
[1725644059466,3.9492,126.68,126.59,52.14704259]
[1725644059969,45.49,126.7,126.59,52.14704259]
[1725644060169,45.49,126.7,126.59,6.65704259]
[1725644060470,45.49,126.66,126.59,3.92774259]
[1725644060667,1.3873,126.65,126.55,45.49]
[1725644061572,1.3873,126.65,126.59,3.9519]
[1725644061768,1.3873,126.65,126.59,7.96267718]
[1725644062166,1.3873,126.65,126.58,3.9521]
[1725644062362,2.7767,126.65,126.59,3.95901247]
[1725644062562,2.7767,126.65,126.55,45.49]
[1725644062767,45.49,126.68,126.57,45.49]
[1725644063176,3.9501,126.65,126.6,3.9515]
[1725644063360,3.9501,126.65,126.61,3.99813237]
[1725644063768,3.9501,126.65,126.6,3.9515]
[1725644063960,45.49,126.7,126.57,45.49]
[1725644064463,3.95,126.65,126.61,3.9512]
[1725644064674,3.95,126.65,126.61,7.85616359]
[1725644064871,1.4216,126.67,126.61,7.85616359]
[1725644065169,3.9498,126.66,126.61,7.85616359]
[1725644065368,1.4216,126.67,126.62,3.9508]
[1725644065671,3.9489,126.69,126.62,45.49]
[1725644065873,3.9638,126.72,126.62,45.49]
[1725644066172,3.9494,126.68,126.62,45.49]
[1725644066378,45.49,126.71,126.62,45.49]
[1725644066676,3.9495,126.67,126.61,3.90496359]
[1725644066873,45.49,126.69,126.58,45.49]
[1725644067379,45.49,126.69,126.61,3.9511]
[1725644067770,3.9502,126.65,126.61,3.9511]
[1725644068464,3.9505,126.64,126.6,3.9513]
[1725644068871,3.9505,126.64,126.58,49.50939281]
[1725644069085,3.9505,126.64,126.6,3.9514]
[1725644069677,3.92810584,126.66,126.59,3.9517]
[1725644069880,1.3653,126.65,126.59,3.9517]
[1725644070070,3.9511,126.62,126.58,7.83268404]
[1725644070266,46.8553,126.65,126.56,45.49]
[1725644070776,3.9512,126.62,126.58,3.9522]
[1725644071577,3.9512,126.62,126.56,45.49]
[1725644071578,5.26043074,126.65,126.56,45.49]
[1725644071970,3.9511,126.62,126.58,3.952]
[1725644072171,5.26043074,126.65,126.56,45.49]
[1725644072474,45.49,126.64,126.53,45.49]
[1725644072675,45.49,126.61,126.51,45.49]
[1725644072980,2.7998,126.6,126.49,45.49]
[1725644073373,1.4068,126.59,126.49,45.49]
[1725644073767,3.9524,126.58,126.53,3.9535]
[1725644074270,1.4068,126.59,126.49,45.49]
[1725644074576,3.9527,126.57,126.49,45.49]
[1725644074876,1.4068,126.59,126.49,45.49]
[1725644075073,3.9524,126.58,126.49,45.49]
[1725644075478,5.3588,126.59,126.49,45.49]
[1725644075675,5.3588,126.59,126.51,45.49]
[1725644075873,1.4068,126.59,126.51,45.49]
[1725644076077,1.4068,126.59,126.54,3.9533]
[1725644076590,1.4068,126.59,126.48,6.74797506]
[1725644076591,1.4068,126.59,126.57,3.9524]
[1725644077175,1.4068,126.59,126.56,3.9527]
[1725644077879,1.4068,126.59,126.56,8.00412188]
[1725644078479,1.4068,126.59,126.55,3.953]
[1725644078874,1.4068,126.59,126.55,7.99809648]
[1725644079074,1.4068,126.59,126.55,3.953]
[1725644079278,1.4068,126.59,126.54,3.9533]
[1725644079481,1.4068,126.59,126.55,3.89565879]
[1725644079781,1.4068,126.59,126.51,45.49]
[1725644079975,3.9522,126.58,126.54,3.9532]
[1725644080169,1.4068,126.59,126.51,37.97]
[1725644080170,1.4068,126.59,126.55,3.87748103]
[1725644080373,1.4068,126.59,126.51,37.97]
[1725644080574,37.97,126.62,126.53,37.97]
[1725644080774,39.3475,126.62,126.53,37.97]
[1725644081175,39.3475,126.62,126.48,6.74797506]
[1725644081176,1.3775,126.62,126.55,37.97]
[1725644081382,1.3775,126.62,126.57,37.97]
[1725644081685,5.3577,126.64,126.59,3.9516]
[1725644081878,1.4072,126.64,126.59,3.9516]
[1725644082270,3.9507,126.63,126.59,3.9516]
[1725644082678,1.4072,126.64,126.57,37.97]
[1725644082881,3.9512,126.62,126.55,41.83917977]
[1725644083080,3.9512,126.62,126.58,3.9519]
[1725644083386,1.3775,126.65,126.55,41.83917977]
[1725644083684,5.29358251,126.65,126.58,37.97]
[1725644084582,3.9506,126.64,126.6,3.9514]
[1725644085181,5.29358251,126.65,126.58,37.97]
[1725644085886,3.9508,126.63,126.6,3.9514]
[1725644086281,5.29358251,126.65,126.58,37.97]
[1725644086476,3.9505,126.64,126.6,3.9515]
[1725644086682,5.29358251,126.65,126.6,3.9515]
[1725644087187,3.9508,126.63,126.6,3.9515]
[1725644087584,3.951,126.62,126.59,3.9517]
[1725644088489,5.29358251,126.65,126.58,3.952]
[1725644088986,37.97,126.64,126.56,2.7775]
[1725644089193,39.3805,126.64,126.55,41.83917977]
[1725644089386,1.4105,126.64,126.55,41.83917977]
[1725644089690,3.9512,126.62,126.58,3.952]
[1725644089888,1.4105,126.64,126.55,41.83917977]
[1725644090084,39.3805,126.64,126.55,41.83917977]
[1725644090280,1.3064,126.63,126.55,41.83917977]
[1725644090683,3.9514,126.61,126.57,3.9524]
[1725644090883,1.3064,126.63,126.57,3.9524]
[1725644091182,1.3064,126.63,126.55,41.83917977]
[1725644091578,3.9518,126.6,126.55,41.83917977]
[1725644091882,1.3064,126.63,126.55,41.83917977]
[1725644092192,3.9508,126.63,126.55,41.83917977]
[1725644092789,3.951,126.62,126.58,3.952]
[1725644093791,43.26358251,126.65,126.58,3.952]
[1725644094385,3.9512,126.62,126.59,3.9518]
[1725644094891,3.9509,126.63,126.55,41.83917977]
[1725644095094,5.29358251,126.65,126.55,41.83917977]
[1725644095389,227.0,126.72,126.65,3.95]
[1725644095590,0.58876401,126.71,126.64,37.97]
[1725644095783,1.2972,126.72,126.64,37.97]
[1725644095987,3.9483,126.71,126.64,37.97]
[1725644096488,37.97,126.69,126.61,2.7533]
[1725644096687,37.97,126.69,126.58,37.97]
[1725644096890,37.97,126.69,126.6,37.97]
[1725644097094,3.9496,126.67,126.63,3.9505]
[1725644097386,3.9496,126.67,126.63,7.92690691]
[1725644097593,3.9496,126.67,126.63,3.9505]
[1725644098196,3.9496,126.67,126.63,7.89847015]
[1725644098386,37.97,126.71,126.63,3.94797015]
[1725644098698,37.97,126.67,126.56,2.7002]
[1725644098996,37.97,126.67,126.59,37.97]
[1725644098997,5.2529,126.66,126.59,37.97]
[1725644099195,37.97,126.71,126.61,37.97]
[1725644099395,37.97,126.71,126.65,3.9498]
[1725644099590,3.949,126.69,126.64,3.94487146]
[1725644099791,3.949,126.69,126.62,39.2787]
[1725644100397,3.949,126.69,126.63,1.2835]
[1725644100898,3.949,126.69,126.65,3.9499]
[1725644101195,344.0,126.84,126.68,37.97]
[1725644101387,1.3521,126.78,126.7,37.97]
[1725644101599,38.55848131,126.77,126.68,37.97]
[1725644101790,0.58848131,126.76,126.69,3.9486]
[1725644101999,37.97,126.77,126.69,3.9486]
[1725644102299,37.97,126.75,126.66,37.97]
[1725644103001,37.97,126.73,126.64,37.97]
[1725644103195,44.70087786,126.72,126.63,5.27854659]
[1725644103394,3.9483,126.71,126.64,37.97]
[1725644104398,2.7626,126.72,126.64,37.97]
[1725644104593,1.3521,126.72,126.66,37.97]
[1725644104801,1.3521,126.72,126.64,37.97]
[1725644104995,5.3001,126.72,126.64,37.97]
[1725644105394,1.3521,126.72,126.64,37.97]
[1725644105800,1.3521,126.72,126.68,3.9488]
[1725644106003,3.9475,126.73,126.66,37.97]
[1725644106201,3.9475,126.73,126.68,3.9489]
[1725644107008,4.02861786,126.74,126.66,37.97]
[1725644107204,2.8319,126.77,126.63,43.24854659]
[1725644107205,37.97,126.72,126.63,43.24854659]
[1725644107406,5.31143361,126.71,126.63,43.24854659]
[1725644107603,5.31143361,126.71,126.63,41.96504659]
[1725644107812,37.97,126.68,126.59,37.97]
[1725644108010,37.97,126.68,126.6,3.85564123]
[1725644108011,37.97,126.66,126.6,3.85564123]
[1725644108209,3.9506,126.63,126.59,3.9517]
[1725644108406,4.1471,126.71,126.59,3.87894173]
[1725644108708,3.9493,126.68,126.63,3.9506]
[1725644108900,37.97,126.7,126.59,37.97]
[1725644109103,37.97,126.68,126.57,6.55732396]
[1725644109305,37.97,126.68,126.58,37.97]
[1725644110013,3.9502,126.65,126.61,3.9511]
[1725644110307,37.97,126.68,126.6,3.9515]
[1725644110514,37.97,126.64,126.57,3.91922396]
[1725644110713,41.88633994,126.64,126.54,37.97]
[1725644111012,41.88633994,126.64,126.55,1.3178]
[1725644111213,37.97,126.62,126.55,1.3178]
[1725644111406,37.97,126.62,126.54,7.8358555]
[1725644111606,37.97,126.62,126.52,1.3178]
[1725644111607,41.88317905,126.62,126.52,1.3178]
[1725644112310,41.88317905,126.62,126.54,3.9533]
[1725644112509,3.91317905,126.62,126.54,3.89535694]
[1725644112714,4.1397,126.63,126.55,37.97]
[1725644113015,37.97,126.68,126.58,37.97]
[1725644113209,37.97,126.69,126.62,3.9507]
[1725644113405,3.86057344,126.68,126.58,37.97]
[1725644113605,37.97,126.66,126.52,1.3178]
[1725644113805,3.9507,126.63,126.58,3.9522]
[1725644114000,41.89895464,126.68,126.58,3.97796776]
[1725644114217,37.97,126.68,126.59,37.97]
[1725644114510,3.85543497,126.69,126.61,37.97]
[1725644115018,1.3252,126.7,126.63,37.97]
[1725644115519,5.2737,126.7,126.65,3.9497]
[1725644115815,39.2847,126.74,126.65,37.97]
[1725644116007,1.4029,126.73,126.65,45.53]
[1725644116414,1.4029,126.73,126.65,49.5706415]
[1725644117115,3.99916053,126.72,126.65,4.0406415]
[1725644117313,3.99916053,126.72,126.63,45.53]
[1725644117514,3.9486,126.7,126.63,45.53]
[1725644117909,1.4029,126.73,126.63,49.54891337]
[1725644118616,3.9484,126.71,126.63,49.54891337]
[1725644118908,4.01338258,126.72,126.63,49.54891337]
[1725644119113,4.01338258,126.72,126.63,4.01891337]
[1725644119316,4.01338258,126.72,126.62,5.86901617]
[1725644119613,4.01338258,126.72,126.63,45.53]
[1725644119821,3.9487,126.7,126.63,49.48516239]
[1725644120117,4.01338258,126.72,126.63,49.48516239]
[1725644120413,3.9487,126.7,126.65,3.9498]
[1725644121011,4.01338258,126.72,126.64,3.9502]
[1725644121211,45.53,126.72,126.63,3.95516239]
[1725644121405,49.54875148,126.72,126.61,1.3846]
[1725644121609,3.9498,126.66,126.62,3.9509]
[1725644122011,1.4109,126.69,126.62,3.98241485]
[1725644122214,3.9495,126.67,126.63,3.9504]
[1725644122413,1.4109,126.69,126.62,4.04813802]
[1725644122617,1.4109,126.69,126.6,46.9083]
[1725644122818,3.9496,126.67,126.6,46.9083]
[1725644123020,1.4109,126.69,126.6,46.9083]
[1725644123316,1.4109,126.69,126.6,50.83398264]
[1725644123616,1.4109,126.69,126.62,3.9509]
[1725644123617,3.9499,126.66,126.62,3.9509]
[1725644124011,1.4109,126.69,126.6,50.83398264]
[1725644124215,1.4029,126.73,126.62,45.53]
[1725644124511,4.04853304,126.72,126.65,45.53]
[1725644124714,3.9487,126.7,126.66,3.9495]
[1725644124918,4.04853304,126.72,126.63,45.53]
[1725644125211,0.58868662,126.71,126.63,3.9504]
[1725644125415,46.11868662,126.7,126.6,5.30398264]